fUST/lending_fUST_20260226
["ID","MTS","AMOUNT","RATE_DAILY","PERIOD"]
[406698525,1772096953673,-598.34696001,0.000149,2]
[406698526,1772096953695,-267.18579571,0.00014916,2]
[406698527,1772096953718,-735.46254167,0.00014933,2]
[406698528,1772096953739,-1950.60005152,0.00015,2]
[406698529,1772096953762,-2647.61172628,0.00015,2]
[406698530,1772096953787,-864.0,0.00015193,2]
[406698531,1772096953832,-180.68072,0.00015428,2]
[406698532,1772096953857,-4758.69572276,0.00015847,2]
[406698533,1772096953882,-823.0,0.00016269,2]
[406698534,1772096953907,-327.62026143,0.0001631,2]
[406698535,1772096956230,-250.0,0.00016453,2]
[406698536,1772096956257,-1000.0,0.00016712,2]
[406698537,1772096964170,500.0,0.00013135,2]
[406698538,1772096964223,500.0,0.00013135,2]
[406698539,1772096964280,215.86293252,0.00013135,2]
[406698540,1772096976701,53.95675363,0.00013135,2]
[406698541,1772096976723,446.04324637,0.00013135,2]
[406698542,1772096976762,500.0,0.00013135,2]
[406698543,1772096976814,244.95942866,0.00013135,2]
[406698544,1772096988251,500.0,0.00013698,2]
[406698545,1772096988399,500.0,0.00013698,2]
[406698546,1772096988629,305.76421165,0.00013698,2]
[406698547,1772097004333,216.28929297,0.00013273,2]
[406698549,1772097005828,159.26501413,0.00013699,2]
[406698550,1772097006028,1000.0,0.00014247,2]
[406698551,1772097006091,500.0,0.00013699,2]
[406698552,1772097006140,395.38945896,0.00014795,2]
[406698553,1772097006170,610.40990388,0.00013273,2]
[406698554,1772097006196,189.36,9.5e-05,2]
[406698555,1772097006800,189.36,0.0001,2]
[406698556,1772097007798,189.36,0.000104,2]
[406698557,1772097008190,500.0,0.00013135,2]
[406698558,1772097008221,500.0,0.00013135,2]
[406698559,1772097008260,500.0,0.00013135,2]
[406698560,1772097008390,500.0,0.00013135,2]
[406698561,1772097008476,500.0,0.00013135,2]
[406698562,1772097008501,500.0,0.00013135,2]
[406698563,1772097008527,500.0,0.00013135,2]
[406698564,1772097008566,500.0,0.00013135,2]
[406698565,1772097008597,500.0,0.00013135,2]
[406698566,1772097008631,500.0,0.00013135,2]
[406698567,1772097008665,500.0,0.00013135,2]
[406698568,1772097008697,500.0,0.00013135,2]
[406698569,1772097008722,500.0,0.00013135,2]
[406698570,1772097008775,500.0,0.00013135,2]
[406698571,1772097009053,302.48798624,0.00013135,2]
[406698572,1772097020709,893.78,0.00010249,30]
[406698573,1772097022910,1787.56,0.00010875,30]
[406698574,1772097027479,2681.35,0.000115,30]
[406698575,1772097027988,316.21227193,0.00012126,30]
[406698576,1772097028009,3258.91772807,0.00012126,30]
[406698577,1772097028356,25.18963389,0.00012751,30]
[406698578,1772097028376,2515.21897043,0.00012751,30]
[406698579,1772097028397,1928.50139568,0.00012751,30]
[406698604,1772097031998,-5362.69,0.00013377,30]
[406698606,1772097032007,-6256.47,0.00014003,30]
[406698626,1772097032179,-7150.26,0.00014628,30]
[406698629,1772097032201,-8044.04,0.00015254,30]
[406698631,1772097032210,-8937.82,0.00015879,30]
[406698633,1772097032219,-3882.186259,0.00016215,2]
[406698635,1772097032227,-300.0,0.00016989,2]
[406698637,1772097032236,-669.0,0.00016989,2]
[406698639,1772097032245,-235.9712944,0.00016989,2]
[406698641,1772097032254,-1063.46524356,0.0001699,2]
[406698761,1772097038426,-88.03187503,0.0001699,2]
[406698774,1772097040926,-733.93922895,0.0001699,2]
[406698775,1772097040955,-469.07870949,0.0001699,2]
[406698792,1772097043415,-80565.16205885,0.0001699,2]
[406698793,1772097043425,-72304.70452249,0.00017,2]
[406698794,1772097043434,-277.02377734,0.00017229,2]
[406698795,1772097043443,-26356.06871255,0.000173,2]
[406698796,1772097043453,-600.0,0.00017329,2]
[406698797,1772097043463,-414.59,0.00017817,2]
[406698798,1772097043473,-1500.0,0.00017882,2]
[406698799,1772097043484,-277.0237773,0.00017897,2]
[406698800,1772097043494,-716.87429222,0.0001793,2]
[406698801,1772097043505,-300.0,0.00018,2]
[406698802,1772097043515,-18724.20228141,0.00018,2]
[406698803,1772097043527,-612210.10468022,0.00018,2]
[406698804,1772097043536,-487.0,0.00018,2]
[406698805,1772097043547,-487.0,0.00018,2]
[406698806,1772097043556,-487.0,0.00018,2]
[406698807,1772097043566,-487.0,0.00018,2]
[406698808,1772097043575,-712.6,0.00018,2]
[406698809,1772097043585,-715.0,0.000184,2]
[406698810,1772097043594,-715.0,0.00018456,2]
[406698812,1772097043604,-293.85068442,0.00018519,2]
[406698813,1772097043614,-744.71502317,0.00018529,2]
[406698814,1772097043623,-420.0,0.00018556,2]
[406698815,1772097043632,-500.0,0.00018559,2]
[406698816,1772097043642,-277.0237773,0.00018565,2]
[406698817,1772097043652,-500.0,0.00018741,2]
[406698818,1772097043661,-500.0,0.00018936,2]
[406698819,1772097043670,-278.44612739,0.00018989,2]
[406698820,1772097043679,-720.0,0.00019062,2]
[406698821,1772097043689,-277.0237773,0.00019232,2]
[406698822,1772097043698,-500.0,0.00019407,2]
[406698823,1772097043707,-403.0,0.00019529,2]
[406698824,1772097043716,-403.0,0.0001973,2]
[406698825,1772097043726,-500.0,0.00019734,2]
[406698826,1772097043735,-6145.64856398,0.000198,2]
[406698827,1772097043745,-1000.0,0.00019839,2]
[406698828,1772097043754,-1000.0,0.00019839,2]
[406698829,1772097043763,-1000.0,0.00019839,2]
[406698830,1772097043772,-1000.0,0.00019839,2]
[406698831,1772097043782,-277.0237773,0.000199,2]
[406698832,1772097043791,-500.0,0.00019937,2]
[406698833,1772097043800,-5865.4558534,0.0002,120]
[406698834,1772097043809,-273459.42113182,0.0002,2]
[406698835,1772097043819,-2000.0,0.0002,7]
[406698836,1772097043828,-728.0,0.00020046,2]
[406698837,1772097043838,-500.0,0.00020132,2]
[406698838,1772097043847,-715.0,0.00020169,2]
[406698839,1772097043856,-587.0,0.00020267,2]
[406698840,1772097043866,-1397.55352461,0.0002061,2]
[406698841,1772097043879,-715.0,0.00020712,2]
[406698842,1772097043889,-227.553,0.00020815,2]
[406698843,1772097043898,-207.401,0.00020815,2]
[406698844,1772097043908,-150.572,0.00020815,2]
[406698845,1772097043918,-250.0,0.00020815,2]
[406698846,1772097043928,-1386.0,0.00020815,2]
[406698847,1772097043937,-637.0,0.00020815,2]
[406698848,1772097043949,-2181.0,0.00020815,2]
[406698849,1772097043958,-500.0,0.00020836,2]
[406698850,1772097043968,-258.01526345,0.000209,2]
[406698851,1772097043978,-864.0,0.00020968,2]
[406698852,1772097043987,-320.92096038,0.00020989,2]
[406698853,1772097043996,-3000.0,0.00021,2]
[406698854,1772097044005,-5015.81082769,0.00021,5]
[406698855,1772097044015,-279.08093824,0.00021,2]
[406698856,1772097044025,-1572.6310936,0.00021,10]
[406698857,1772097044034,-2720.0,0.00021,2]
[406698858,1772097044043,-50000.0,0.00021,2]
[406698859,1772097044053,-2000.0,0.00021,7]
[406698860,1772097044062,-595.64309307,0.0002101,2]
[406698861,1772097044075,-2404.35690693,0.0002101,2]
[406698862,1772097044084,-3000.0,0.0002102,2]
[406698863,1772097044094,-3000.0,0.0002103,2]
[406698864,1772097044103,-3000.0,0.0002104,2]
[406698865,1772097044112,-3000.0,0.0002105,2]
[406698866,1772097044122,-3820.70333,0.0002106,2]
[406698867,1772097044132,-5682.38773633,0.00021393,3]
[406698868,1772097044141,-951.73817958,0.00021393,3]
[406698869,1772097044151,-1690.84274254,0.00021917,2]
[406698870,1772097044161,-150.0,0.00021918,2]
[406698871,1772097044170,-2000.0,0.00022,7]
[406698872,1772097044179,-823.0,0.00022137,2]
[406698873,1772097044189,-157.98442559,0.00022166,2]
[406698874,1772097044198,-284.24485141,0.00022166,2]
[406698875,1772097044207,-194.72792766,0.00022166,2]
[406698876,1772097044216,-201.93286099,0.00022166,2]
[406698877,1772097044226,-209.40437684,0.00022166,2]
[406698878,1772097044236,-217.15233878,0.00022166,2]
[406698879,1772097044245,-225.18697532,0.00022166,2]
[406698880,1772097044255,-233.51889341,0.00022166,2]
[406698881,1772097044265,-250.0,0.00022166,2]
[406698882,1772097044275,-242.15909246,0.00022166,2]
[406698883,1772097044284,-251.11897888,0.00022166,2]
[406698884,1772097044294,-260.4103811,0.00022166,2]
[406698885,1772097044303,-270.0455652,0.00022166,2]
[406698886,1772097044313,-280.03725112,0.00022166,2]
[406698887,1772097044323,-290.39862941,0.00022166,2]
[406698888,1772097044332,-301.1433787,0.00022166,2]
[406698889,1772097044341,-250.0,0.00022166,2]
[406698890,1772097044351,-179.73040439,0.0002218,2]
[406698891,1772097044361,-1822.76237468,0.00022277,3]
[406698892,1772097044371,-3458.0,0.00022388,10]
[406698893,1772097044380,-300.0,0.00022466,2]
[406698894,1772097044390,-500.0,0.00022572,2]
[406698895,1772097044399,-500.0,0.00022722,2]
[406698896,1772097044409,-500.0,0.00022835,2]
[406698897,1772097044419,-500.0,0.000229,2]
[406698898,1772097044428,-363.39579338,0.00022989,2]
[406698899,1772097044437,-2000.0,0.00023,7]
[406698900,1772097044447,-450.0,0.00023014,2]
[406698901,1772097044456,-728.0,0.00023046,2]
[406698902,1772097044466,-1000.0,0.00023065,10]
[406698903,1772097044476,-500.0,0.00023147,2]
[406698904,1772097044485,-2275.21074489,0.0002316,3]
[406698905,1772097044494,-744.71502317,0.0002316,3]
[406698906,1772097044504,-500.0,0.00023226,2]
[406698907,1772097044513,-500.0,0.00023435,2]
[406698908,1772097044523,-313.15846324,0.00023562,2]
[406698909,1772097044532,-403.0,0.00023621,3]
[406698910,1772097044542,-396.53675486,0.0002366,2]
[406698911,1772097044552,-150.0,0.00023815,2]
[406698912,1772097044561,-150.0,0.00023815,2]
[406698913,1772097044573,-150.0,0.00023815,2]
[406698914,1772097044582,-150.0,0.00023815,2]
[406698915,1772097044591,-1386.0,0.00023815,2]
[406698916,1772097044601,-637.0,0.00023815,2]
[406698917,1772097044611,-2181.0,0.00023815,2]
[406698918,1772097044620,-2610.89944309,0.00024,2]
[406698919,1772097044630,-2000.0,0.00024,7]
[406698920,1772097044639,-744.71502317,0.00024,7]
[406698921,1772097044648,-162.0,0.00024157,3]
[406698922,1772097044659,-715.0,0.00024164,3]
[406698923,1772097044668,-1152.0,0.00024179,2]
[406698924,1772097044678,-500.0,0.00024193,2]
[406698925,1772097044688,-3882.186259,0.00024322,2]
[406698926,1772097044697,-414.0,0.00024594,3]
[406698927,1772097044706,-150.0,0.00024658,2]
[406698928,1772097044715,-4369.761095,0.00024658,2]
[406698929,1772097044725,-4369.761095,0.00024658,2]
[406698930,1772097044734,-4369.761095,0.00024658,2]
[406698931,1772097044743,-4369.761095,0.00024658,2]
[406698932,1772097044752,-500.0,0.00024677,2]
[406698933,1772097044762,-211.96222317,0.00024681,2]
[406698934,1772097044772,-60900.92835432,0.0002475,2]
[406698935,1772097044812,-1572.14192771,0.0002475,2]
[406698936,1772097044897,-57.18927419,0.0002475,2]
[406698940,1772097046136,-355.16470084,0.00023815,10]
[406698941,1772097046151,-2814.83529916,0.00023815,10]
[406698942,1772097046160,-715.0,0.00023844,3]
[406698943,1772097046170,-1497.01549031,0.0002475,2]
[406698944,1772097065283,268.13,9.678e-05,30]
[406698945,1772097065677,329.0684427,0.00010269,30]
[406698946,1772097065700,207.2015573,0.00010269,30]
[406698947,1772097066052,804.4,0.0001086,30]
[406698948,1772097066435,1072.54,0.0001145,30]
[406698949,1772097066794,365.8584427,0.00012041,30]
[406698958,1772097081487,229.35,9.669e-05,30]
[406698959,1772097081848,458.7,0.00010259,30]
[406698960,1772097082733,688.06,0.00010849,30]
[406698961,1772097082824,917.41,0.00011439,30]
[406698962,1772097101121,200.16,9.663e-05,30]
[406698963,1772097101472,400.32,0.00010253,30]
[406698964,1772097101829,600.49,0.00010843,30]
[406698965,1772097102189,800.65,0.00011433,30]
[406698966,1772097120972,174.69,9.653e-05,30]
[406698967,1772097121874,349.37,0.00010242,30]
[406698968,1772097122256,524.06,0.00010832,30]
[406698969,1772097122949,698.75,0.00011421,30]
[406698970,1772097151042,152.45,7.754e-05,30]
[406698971,1772097152558,304.91,8.227e-05,30]
[406698972,1772097152900,457.36,8.7e-05,30]
[406698973,1772097153259,609.82,9.173e-05,30]
[406698974,1772097153618,762.27,9.647e-05,30]
[406698975,1772097154003,914.72,0.0001012,30]
[406698976,1772097154364,1067.18,0.00010593,30]
[406698977,1772097154926,1219.63,0.00011066,30]
[406698978,1772097155106,1372.09,0.00011539,30]
[406698979,1772097192375,150.0,7.842e-05,30]
[406698980,1772097192721,150.0,8.321e-05,30]
[406698981,1772097193061,195.42,8.8e-05,30]
[406698982,1772097193425,260.56,9.278e-05,30]
[406698983,1772097193781,325.7,9.757e-05,30]
[406698984,1772097194139,390.84,0.00010236,30]
[406698985,1772097194598,455.98,0.00010714,30]
[406698986,1772097194966,521.11,0.00011193,30]
[406698987,1772097195329,586.25,0.00011672,30]
[406698988,1772097245033,2637.53952123,0.0001,2]
[406698989,1772097333523,261.38016656,0.0001,2]
[406698990,1772097495228,500.0,0.00012001,2]
[406698991,1772097505337,1000.0,0.00012001,2]
[406698992,1772097518189,1000.0,0.00012001,2]
[406698994,1772097606501,152.0,9.5e-05,2]
[406698998,1772097944151,-173.04954769,0.00012206,2]
[406698999,1772098021291,565.98476459,0.00012001,2]
[406699004,1772098036086,-4826.95045231,0.00012206,2]
[406699005,1772098036106,-222.06261211,0.0001233,2]
[406699006,1772098036126,-596.0,0.00012455,2]
[406699007,1772098036148,-1200.0,0.00012707,2]
[406699008,1772098036170,-300.0,0.00012707,2]
[406699009,1772098036215,-300.0,0.00012708,2]
[406699010,1772098036236,-300.0,0.00012708,2]
[406699011,1772098036256,-300.0,0.00012708,2]
[406699012,1772098036275,-10000.0,0.00012709,2]
[406699013,1772098036295,-4171.51398352,0.00013173,2]
[406699014,1772098043127,-741.22809107,0.00013173,2]
[406699015,1772098146095,-2738.11355286,0.00013178,2]
[406699016,1772098146118,-200.0,0.00013188,2]
[406699017,1772098146139,-184.91419289,0.00013264,2]
[406699018,1772098146165,-151.0,0.00013264,2]
[406699019,1772098146187,-202.384503,0.00013264,2]
[406699020,1772098146212,-300.0,0.00013268,2]
[406699021,1772098146236,-6244.66301471,0.00013268,2]
[406699022,1772098157126,-3650.6026077,0.00013268,2]
[406699023,1772098161136,-4945.9672423,0.00013268,2]
[406699024,1772098167248,-18402.8883132,0.00013268,2]
[406699071,1772098238833,-4248.32795475,0.00013173,2]
[406699072,1772098238848,-2940.99563462,0.00013173,2]
[406699073,1772098238858,-300.0,0.00013267,2]
[406699074,1772098238868,-300.0,0.00013267,2]
[406699075,1772098238878,-287.0,0.00013267,2]
[406699076,1772098238887,-300.0,0.00013267,2]
[406699077,1772098238896,-1200.0,0.00013267,2]
[406699078,1772098238909,-16755.87882209,0.00013268,2]
[406699079,1772098238918,-500.0,0.00013269,2]
[406699080,1772098238927,-500.0,0.00013269,2]
[406699081,1772098238937,-615.17045602,0.00013269,2]
[406699082,1772098238946,-500.0,0.00013269,2]
[406699083,1772098238956,-500.0,0.00013269,2]
[406699084,1772098238969,-500.0,0.00013269,2]
[406699085,1772098238979,-500.0,0.00013269,2]
[406699086,1772098238988,-500.0,0.00013269,2]
[406699087,1772098238998,-500.0,0.00013269,2]
[406699088,1772098239010,-580.24879863,0.00013269,2]
[406699089,1772098239019,-500.0,0.00013269,2]
[406699090,1772098239028,-500.0,0.00013269,2]
[406699091,1772098239038,-434.04813997,0.00013269,2]
[406699092,1772098239048,-500.0,0.00013273,2]
[406699093,1772098239057,-500.0,0.00013273,2]
[406699094,1772098239066,-500.0,0.00013273,2]
[406699095,1772098239076,-501.00332123,0.00013273,2]
[406699096,1772098239085,-500.0,0.00013273,2]
[406699097,1772098239094,-500.0,0.00013273,2]
[406699098,1772098239104,-500.0,0.00013273,2]
[406699099,1772098239113,-500.0,0.00013273,2]
[406699100,1772098239122,-500.0,0.00013273,2]
[406699101,1772098239132,-500.0,0.00013273,2]
[406699102,1772098239141,-500.0,0.00013273,2]
[406699103,1772098239150,-351.15143744,0.00013273,2]
[406699104,1772098239160,-500.0,0.00013273,2]
[406699105,1772098239169,-500.0,0.00013273,2]
[406699106,1772098239184,-500.0,0.00013273,2]
[406699107,1772098239196,-500.0,0.00013273,2]
[406699108,1772098239206,-338.71752763,0.00013273,2]
[406699109,1772098239217,-300.0,0.00013673,2]
[406699110,1772098239227,-500.0,0.00013698,2]
[406699111,1772098239236,-282.11793829,0.00013698,2]
[406699112,1772098239246,-500.0,0.00013698,2]
[406699113,1772098239257,-500.0,0.00013698,2]
[406699114,1772098239268,-501.73046484,0.00013698,2]
[406699115,1772098239278,-500.0,0.00013698,2]
[406699116,1772098239289,-500.0,0.00013698,2]
[406699117,1772098239299,-500.0,0.00013698,2]
[406699118,1772098239309,-354.10485374,0.00013698,2]
[406699119,1772098239319,-303.16338553,0.00013698,2]
[406699120,1772098239330,-504.17981725,0.00013698,2]
[406699121,1772098239340,-500.0,0.00013698,2]
[406699122,1772098239350,-500.0,0.00013698,2]
[406699123,1772098239361,-226.41391193,0.00013698,2]
[406699124,1772098239371,-500.0,0.00013699,2]
[406699125,1772098239380,-1000.0,0.00013699,2]
[406699126,1772098239391,-500.0,0.00013699,2]
[406699127,1772098239400,-500.0,0.00013699,2]
[406699128,1772098239410,-368.54698242,0.00013699,2]
[406699129,1772098239419,-457.13676393,0.00013699,2]
[406699130,1772098239430,-244.6974301,0.00013699,2]
[406699131,1772098239440,-500.0,0.00013699,2]
[406699132,1772098239450,-500.0,0.00013699,2]
[406699133,1772098239460,-500.0,0.00013699,2]
[406699134,1772098239470,-524.47667572,0.00013699,2]
[406699135,1772098239480,-500.0,0.00013699,2]
[406699136,1772098239490,-504.10747769,0.00013699,2]
[406699137,1772098239500,-500.0,0.00013699,2]
[406699138,1772098239509,-500.0,0.00013699,2]
[406699139,1772098239519,-500.0,0.00013699,2]
[406699140,1772098239529,-446.97054794,0.00013699,2]
[406699141,1772098239538,-412.23483991,0.00013699,2]
[406699142,1772098239548,-503.99085965,0.00013699,2]
[406699143,1772098239558,-500.0,0.00013699,2]
[406699144,1772098239567,-500.0,0.00013699,2]
[406699145,1772098239577,-600.0,0.00013807,2]
[406699146,1772098239586,-500.0,0.0001382,2]
[406699147,1772098239813,-1000.0,0.00013821,2]
[406699148,1772098239824,-1000.0,0.00013821,2]
[406699149,1772098239833,-1000.0,0.00013821,2]
[406699150,1772098239844,-1000.0,0.00013821,2]
[406699151,1772098239854,-503.08394896,0.00013821,2]
[406699152,1772098239863,-1000.0,0.00013821,2]
[406699153,1772098239872,-1000.0,0.00013821,2]
[406699154,1772098239882,-1000.0,0.00013821,2]
[406699155,1772098239892,-1000.0,0.00013821,2]
[406699156,1772098239903,-1000.0,0.00013821,2]
[406699157,1772098239912,-1000.0,0.00013821,2]
[406699158,1772098239921,-1000.0,0.00013821,2]
[406699159,1772098239931,-1000.0,0.00013821,2]
[406699160,1772098239940,-500.0,0.00013973,2]
[406699161,1772098239949,-1029.48997135,0.00014175,2]
[406699162,1772098239958,-630.02464593,0.00014214,2]
[406699163,1772098239971,-600.0,0.00014221,2]
[406699164,1772098239981,-500.0,0.00014247,2]
[406699165,1772098239990,-631.24481472,0.00014247,2]
[406699166,1772098239999,-1000.0,0.00014247,2]
[406699167,1772098240009,-1000.0,0.00014247,2]
[406699168,1772098240018,-562.9261049,0.00014247,2]
[406699170,1772098240028,-496.20930476,0.00014247,2]
[406699171,1772098240037,-1000.0,0.00014247,2]
[406699172,1772098240047,-614.41709127,0.00014247,2]
[406699173,1772098240055,-1000.0,0.00014247,2]
[406699174,1772098240065,-1000.0,0.00014247,2]
[406699175,1772098240075,-1000.0,0.00014247,2]
[406699176,1772098240084,-1000.0,0.00014247,2]
[406699177,1772098240094,-262.03388229,0.0001433,2]
[406699178,1772098240103,-1500.0,0.00014368,2]
[406699179,1772098240112,-180.7334917,0.00014368,2]
[406699180,1772098240122,-1407.49285395,0.00014368,2]
[406699181,1772098240132,-1500.0,0.00014368,2]
[406699182,1772098240141,-1500.0,0.00014368,2]
[406699183,1772098240151,-1500.0,0.00014368,2]
[406699184,1772098240160,-1500.0,0.00014368,2]
[406699185,1772098240170,-1500.0,0.00014368,2]
[406699186,1772098240181,-1500.0,0.00014368,2]
[406699188,1772098240192,-1500.0,0.00014368,2]
[406699190,1772098240202,-540.34315658,0.00014368,2]
[406699191,1772098240211,-1583.40936768,0.00014368,2]
[406699192,1772098240220,-500.0,0.00014521,2]
[406699193,1772098240231,-420.0,0.00014546,2]
[406699195,1772098240240,-1680.0,0.00014594,2]
[406699197,1772098240249,-900.0,0.00014768,2]
[406699199,1772098240258,-613.49372077,0.00014794,2]
[406699200,1772098240270,-500.0,0.00014795,2]
[406699201,1772098240280,-1500.0,0.00014795,2]
[406699203,1772098240290,-1000.0,0.00014795,2]
[406699204,1772098240300,-1444.77337273,0.00014795,2]
[406699206,1772098240309,-1500.0,0.00014795,2]
[406699207,1772098240319,-1500.0,0.00014795,2]
[406699208,1772098240329,-595.57697702,0.00014795,2]
[406699209,1772098240338,-325.6354297,0.00014795,2]
[406699211,1772098240349,-655.13955767,0.00014857,2]
[406699212,1772098240358,-500.0,0.00014916,2]
[406699213,1772098240368,-500.0,0.00014916,2]
[406699214,1772098240379,-2000.0,0.00014916,2]
[406699215,1772098240388,-2000.0,0.00014916,2]
[406699216,1772098240398,-2000.0,0.00014916,2]
[406699217,1772098240408,-2000.0,0.00014916,2]
[406699218,1772098240417,-500.0,0.00014916,2]
[406699219,1772098240427,-2000.0,0.00014916,2]
[406699220,1772098240436,-500.0,0.00015068,2]
[406699221,1772098240446,-180.760792,0.00015068,2]
[406699222,1772098240455,-720.0,0.00015187,2]
[406699223,1772098240465,-1984.98524886,0.00015278,2]
[406699224,1772098240475,-1200.0,0.00015316,2]
[406699225,1772098240485,-500.0,0.00015342,2]
[406699226,1772098240494,-2027.96171076,0.00015342,2]
[406699227,1772098240503,-680.88266684,0.00015342,2]
[406699228,1772098240512,-2000.0,0.00015342,2]
[406699229,1772098240521,-2497.65689516,0.00015464,2]
[406699230,1772098240531,-1022.63178723,0.00015464,2]
[406699231,1772098240539,-2500.0,0.00015464,2]
[406699232,1772098240549,-2500.0,0.00015464,2]
[406699233,1772098240558,-2000.0,0.00015464,2]
[406699235,1772098240568,-7189.32358934,0.00015484,2]
[406699237,1772098240577,-500.0,0.00015616,2]
[406699239,1772098240586,-300.0,0.00015864,2]
[406699240,1772098240595,-500.0,0.0001589,2]
[406699241,1772098240605,-1242.15368425,0.0001589,2]
[406699242,1772098240614,-587.0,0.00015948,2]
[406699244,1772098240624,-3000.0,0.00016012,2]
[406699246,1772098240633,-3000.0,0.00016012,2]
[406699247,1772098240642,-363.0,0.00016054,2]
[406699248,1772098240663,-573.21055552,0.00016164,2]
[406699249,1772098240673,-302.00515247,0.0001633,2]
[406699250,1772098240683,-2481.3116236,0.00016382,2]
[406699251,1772098240693,-3500.0,0.0001656,2]
[406699252,1772098240703,-3500.0,0.0001656,2]
[406699253,1772098240713,-864.0,0.00016706,2]
[406699254,1772098240723,-500.0,0.00016989,2]
[406699255,1772098240733,-500.0,0.00016989,2]
[406699256,1772098240744,-500.0,0.00016989,2]
[406699257,1772098240754,-500.0,0.00016989,2]
[406699258,1772098240764,-1293.7099931,0.00017108,2]
[406699259,1772098240774,-4000.0,0.00017108,2]
[406699260,1772098240785,-2940.48052638,0.00017485,2]
[406699261,1772098240794,-823.0,0.00017485,2]
[406699262,1772098240805,-252.22097249,0.00017615,2]
[406699263,1772098240816,-2667.49584406,0.00017656,2]
[406699264,1772098240828,-7189.32358934,0.00017795,2]
[406699265,1772098240837,-341.97642265,0.0001833,2]
[406699266,1772098240847,-1000.0,0.00018377,2]
[406699267,1772098240857,-744.71502317,0.00018525,2]
[406699268,1772098240867,-2964.84292315,0.00018589,2]
[406699269,1772098240877,-13732.0,0.00019,2]
[406699270,1772098240887,-1152.0,0.0001917,2]
[406699271,1772098240897,-500.0,0.00019538,2]
[406699272,1772098240909,-3448.37422283,0.00019692,2]
[406699273,1772098240918,-500.0,0.00019947,2]
[406699274,1772098240927,-7189.32358934,0.00020106,2]
[406699275,1772098240937,-1000.0,0.00020214,2]
[406699276,1772098240947,-244.0,0.00020214,2]
[406699277,1772098240958,-381.94769283,0.0002033,2]
[406699278,1772098240969,-1613.0,0.00021017,2]
[406699279,1772098240979,-2181.0,0.0002129,2]
[406699280,1772098240989,-1386.0,0.0002129,2]
[406699281,1772098241000,-637.0,0.0002129,2]
[406699282,1772098241010,-312.84,0.0002129,2]
[406699283,1772098241020,-544.16,0.0002129,2]
[406699284,1772098241030,-744.0,0.0002129,2]
[406699285,1772098241039,-500.0,0.00021823,2]
[406699286,1772098241050,-180.760792,0.00021918,2]
[406699287,1772098241060,-156.0,0.00021918,2]
[406699288,1772098241070,-156.0,0.00021918,2]
[406699289,1772098241080,-200.0,0.00022111,6]
[406699290,1772098241091,-179.78424815,0.0002218,2]
[406699291,1772098241100,-156.0,0.00022216,2]
[406699292,1772098241111,-1000.0,0.00022236,10]
[406699293,1772098241121,-492.0,0.00022236,10]
[406699294,1772098241131,-421.91896301,0.0002233,2]
[406699295,1772098241141,-7189.32358934,0.00022418,2]
[406699296,1772098241151,-500.0,0.00022642,2]
[406699297,1772098241161,-3182.0,0.00022695,10]
[406699298,1772098241171,-500.0,0.0002298,2]
[406699299,1772098241181,-3640.0,0.00023,15]
[406699300,1772098241194,-5000.0,0.00023,2]
[406699301,1772098241203,-1819.0,0.00023043,2]
[406699302,1772098241213,-194.72792766,0.00023195,2]
[406699303,1772098241223,-201.93286099,0.00023195,2]
[406699304,1772098241232,-209.40437684,0.00023195,2]